fUST/lending_fUST_20250505
["ID","MTS","AMOUNT","RATE_DAILY","PERIOD"]
[359921411,1746425440160,-421.83547488,0.00036976,3]
[359921413,1746425440170,-841.77443764,0.00036976,3]
[359921415,1746425440181,-160.0,0.00036976,3]
[359921417,1746425440191,-401.43836479,0.00036986,14]
[359921419,1746425440201,-400.0,0.00036986,14]
[359921421,1746425440210,-400.0,0.00036986,14]
[359921423,1746425440221,-400.0,0.00036986,14]
[359921424,1746425440232,-151.0,0.00036986,14]
[359921426,1746425440242,-413.29,0.00036986,14]
[359921428,1746425440252,-400.0,0.00036986,14]
[359921430,1746425440261,-592.7,0.00036986,14]
[359921432,1746425440271,-400.0,0.00036986,14]
[359921434,1746425440280,-400.0,0.00036986,14]
[359921436,1746425440290,-400.0,0.00036986,14]
[359921438,1746425440299,-400.0,0.00036986,14]
[359921440,1746425440309,-504.49,0.00036986,14]
[359921442,1746425440319,-400.0,0.00036986,14]
[359921445,1746425440327,-400.0,0.00036986,14]
[359921447,1746425440336,-400.0,0.00036986,14]
[359921451,1746425440347,-400.0,0.00036986,14]
[359921452,1746425440356,-400.0,0.00036986,14]
[359921454,1746425440366,-500.4,0.00036986,14]
[359921456,1746425440375,-1197.65,0.00036986,14]
[359921458,1746425440384,-400.0,0.00036986,14]
[359921460,1746425440394,-400.0,0.00036986,14]
[359921462,1746425440403,-416.52,0.00036986,14]
[359921464,1746425440413,-400.0,0.00036986,14]
[359921466,1746425440423,-1044.54,0.00036986,14]
[359921468,1746425440432,-400.0,0.00036986,14]
[359921470,1746425440441,-492.38,0.00036986,14]
[359921472,1746425440451,-515.93,0.00036986,14]
[359921474,1746425440460,-400.0,0.00036986,14]
[359921476,1746425440469,-151.0,0.00036986,14]
[359921478,1746425440479,-400.0,0.00036986,14]
[359921480,1746425440488,-299.067062,0.00036986,14]
[359921482,1746425440498,-151.0,0.00036986,14]
[359921484,1746425440507,-400.0,0.00036986,14]
[359921486,1746425440516,-151.0,0.00036986,14]
[359921488,1746425440526,-508.77664481,0.00036986,14]
[359921490,1746425440536,-400.7,0.00036986,14]
[359921492,1746425440546,-400.0,0.00036986,14]
[359921494,1746425440555,-439.04,0.00036986,14]
[359921496,1746425440564,-756.14,0.00036986,14]
[359921498,1746425440574,-400.0,0.00036986,14]
[359921500,1746425440584,-400.0,0.00036986,14]
[359921502,1746425440594,-1741.6,0.00036986,14]
[359921504,1746425440604,-550.48,0.00036986,14]
[359921506,1746425440614,-1000.0,0.00036986,120]
[359921508,1746425440623,-400.43,0.00036986,2]
[359921510,1746425440634,-400.0,0.00036986,14]
[359921512,1746425440643,-400.0,0.00036986,14]
[359921514,1746425440654,-400.0,0.00036986,14]
[359921516,1746425440663,-400.0,0.00036986,14]
[359921518,1746425440673,-400.0,0.00036986,14]
[359921520,1746425440683,-400.0,0.00036986,14]
[359921522,1746425440692,-741.79,0.00036986,14]
[359921524,1746425440702,-1053.31,0.00036986,14]
[359921526,1746425440712,-400.0,0.00036986,14]
[359921528,1746425440721,-165.22,0.00036986,14]
[359921530,1746425440731,-512.77,0.00036986,14]
[359921532,1746425440741,-1183.98,0.00036986,14]
[359921533,1746425440751,-400.0,0.00036986,14]
[359921534,1746425440761,-400.0,0.00036986,14]
[359921535,1746425440771,-474.27,0.00036986,14]
[359921536,1746425440780,-1500.0,0.00036986,2]
[359921537,1746425440790,-159.55424488,0.00037038,36]
[359921538,1746425440799,-1724.94,0.0003725,3]
[359921540,1746425440810,-862.46,0.0003725,3]
[359921542,1746425440822,-431.24,0.0003725,3]
[359921544,1746425440831,-5670.16435778,0.0003725,3]
[359921546,1746425440841,-151.0,0.0003725,14]
[359921548,1746425440850,-695.848847,0.0003725,2]
[359921550,1746425440860,-695.848847,0.0003725,2]
[359921552,1746425440869,-151.0,0.0003725,2]
[359921554,1746425440880,-400.0,0.0003726,14]
[359921556,1746425440891,-400.0,0.0003726,14]
[359921558,1746425440901,-400.0,0.0003726,14]
[359921560,1746425440911,-413.29,0.0003726,14]
[359921562,1746425440921,-400.0,0.0003726,14]
[359921564,1746425440930,-592.7,0.0003726,14]
[359921566,1746425440939,-400.0,0.0003726,14]
[359921568,1746425440948,-400.0,0.0003726,14]
[359921570,1746425440957,-400.0,0.0003726,14]
[359921572,1746425440967,-400.0,0.0003726,14]
[359921574,1746425440976,-400.0,0.0003726,14]
[359921576,1746425440986,-400.0,0.0003726,14]
[359921578,1746425440995,-400.0,0.0003726,14]
[359921580,1746425441004,-400.0,0.0003726,14]
[359921582,1746425441013,-400.0,0.0003726,14]
[359921584,1746425441023,-500.4,0.0003726,14]
[359921586,1746425441033,-1197.65,0.0003726,14]
[359921588,1746425441043,-400.0,0.0003726,14]
[359921590,1746425441052,-400.0,0.0003726,14]
[359921592,1746425441061,-416.52,0.0003726,14]
[359921593,1746425441070,-400.0,0.0003726,14]
[359921595,1746425441080,-1044.54,0.0003726,14]
[359921597,1746425441089,-400.0,0.0003726,14]
[359921599,1746425441099,-492.38,0.0003726,14]
[359921601,1746425441108,-400.0,0.0003726,14]
[359921603,1746425441117,-400.0,0.0003726,14]
[359921605,1746425441127,-2000.0,0.0003726,120]
[359921607,1746425441140,-400.7,0.0003726,14]
[359921609,1746425441150,-400.0,0.0003726,14]
[359921611,1746425441159,-439.04,0.0003726,14]
[359921612,1746425441168,-756.14,0.0003726,14]
[359921613,1746425441179,-400.0,0.0003726,14]
[359921614,1746425441188,-368.23,0.0003726,14]
[359921615,1746425441198,-1741.6,0.0003726,14]
[359921616,1746425441208,-550.48,0.0003726,14]
[359921617,1746425441218,-1000.0,0.0003726,120]
[359921618,1746425441228,-400.43,0.0003726,2]
[359921619,1746425441238,-400.0,0.0003726,14]
[359921620,1746425441247,-400.0,0.0003726,14]
[359921621,1746425441257,-400.0,0.0003726,14]
[359921622,1746425441266,-400.0,0.0003726,14]
[359921623,1746425441275,-255.26,0.0003726,14]
[359921624,1746425441284,-400.0,0.0003726,14]
[359921625,1746425441293,-741.79,0.0003726,14]
[359921626,1746425441303,-1053.31,0.0003726,14]
[359921627,1746425441312,-400.0,0.0003726,14]
[359921628,1746425441321,-512.77,0.0003726,14]
[359921629,1746425441330,-1183.98,0.0003726,14]
[359921630,1746425441339,-400.0,0.0003726,14]
[359921631,1746425441349,-400.0,0.0003726,14]
[359921632,1746425441357,-474.27,0.0003726,14]
[359921633,1746425441366,-159.55424488,0.00037279,36]
[359921634,1746425441376,-159.55424488,0.00037521,36]
[359921635,1746425441385,-400.0,0.00037534,14]
[359921636,1746425441394,-400.0,0.00037534,14]
[359921637,1746425441403,-400.0,0.00037534,14]
[359921638,1746425441412,-413.29,0.00037534,14]
[359921639,1746425441422,-400.0,0.00037534,14]
[359921640,1746425441432,-592.7,0.00037534,14]
[359921641,1746425441441,-400.0,0.00037534,14]
[359921642,1746425441451,-400.0,0.00037534,14]
[359921643,1746425441460,-400.0,0.00037534,14]
[359921644,1746425441470,-200.0,0.00037534,14]
[359921645,1746425441480,-400.0,0.00037534,14]
[359921646,1746425441490,-400.0,0.00037534,14]
[359921647,1746425441499,-400.0,0.00037534,14]
[359921648,1746425441510,-400.0,0.00037534,14]
[359921649,1746425441519,-500.4,0.00037534,14]
[359921650,1746425441529,-1197.65,0.00037534,14]
[359921651,1746425441539,-400.0,0.00037534,14]
[359921652,1746425441549,-400.0,0.00037534,14]
[359921653,1746425441559,-416.52,0.00037534,14]
[359921654,1746425441568,-400.0,0.00037534,14]
[359921655,1746425441577,-1044.54,0.00037534,14]
[359921656,1746425441587,-400.0,0.00037534,14]
[359921657,1746425441597,-492.38,0.00037534,14]
[359921658,1746425441606,-400.0,0.00037534,14]
[359921659,1746425441616,-151.0,0.00037534,14]
[359921660,1746425441625,-153.87343666,0.00037534,14]
[359921661,1746425441635,-151.0,0.00037534,14]
[359921662,1746425441645,-151.0,0.00037534,14]
[359921663,1746425441654,-400.7,0.00037534,14]
[359921664,1746425441664,-400.0,0.00037534,14]
[359921665,1746425441673,-439.04,0.00037534,14]
[359921666,1746425441682,-756.14,0.00037534,14]
[359921667,1746425441692,-400.0,0.00037534,14]
[359921668,1746425441702,-1741.6,0.00037534,14]
[359921669,1746425441712,-550.48,0.00037534,14]
[359921670,1746425441722,-1000.0,0.00037534,120]
[359921671,1746425441732,-400.43,0.00037534,2]
[359921672,1746425441742,-478.21,0.00037534,14]
[359921673,1746425441752,-400.0,0.00037534,14]
[359921674,1746425441762,-400.0,0.00037534,14]
[359921675,1746425441771,-400.0,0.00037534,14]
[359921676,1746425441780,-400.0,0.00037534,14]
[359921677,1746425441790,-741.79,0.00037534,14]
[359921678,1746425441799,-1053.31,0.00037534,14]
[359921679,1746425441809,-400.0,0.00037534,14]
[359921680,1746425441818,-512.77,0.00037534,14]
[359921681,1746425441828,-1183.98,0.00037534,14]
[359921682,1746425441838,-400.0,0.00037534,14]
[359921683,1746425441847,-400.0,0.00037534,14]
[359921684,1746425441856,-474.27,0.00037534,14]
[359921685,1746425441865,-176.85064414,0.00037592,2]
[359921686,1746425441875,-918.66,0.000376,30]
[359921687,1746425441884,-159.55424488,0.00037762,37]
[359921688,1746425441894,-5670.16435778,0.00037798,3]
[359921689,1746425441904,-151.0,0.00037798,14]
[359921690,1746425441914,-695.848847,0.00037798,2]
[359921691,1746425441924,-695.848847,0.00037798,2]
[359921692,1746425441933,-200.940087,0.00037798,2]
[359921693,1746425441943,-3434.36,0.000378,30]
[359921694,1746425441953,-157.96,0.000378,31]
[359921695,1746425441964,-400.0,0.00037808,14]
[359921696,1746425441973,-400.0,0.00037808,14]
[359921697,1746425441983,-400.0,0.00037808,14]
[359921698,1746425441993,-413.29,0.00037808,14]
[359921699,1746425442002,-400.0,0.00037808,14]
[359921700,1746425442012,-592.7,0.00037808,14]
[359921701,1746425442021,-430.7214315,0.00037808,14]
[359921702,1746425442031,-400.0,0.00037808,14]
[359921703,1746425442041,-400.0,0.00037808,14]
[359921704,1746425442051,-400.0,0.00037808,14]
[359921705,1746425442060,-404.05341436,0.00037808,14]
[359921706,1746425442069,-400.0,0.00037808,14]
[359921707,1746425442078,-400.0,0.00037808,14]
[359921708,1746425442088,-500.4,0.00037808,14]
[359921709,1746425442097,-1197.65,0.00037808,14]
[359921710,1746425442107,-400.0,0.00037808,14]
[359921711,1746425442116,-400.0,0.00037808,14]
[359921712,1746425442126,-416.52,0.00037808,14]
[359921713,1746425442139,-400.0,0.00037808,14]
[359921714,1746425442240,-1044.54,0.00037808,14]
[359921715,1746425442251,-400.0,0.00037808,14]
[359921716,1746425442261,-492.38,0.00037808,14]
[359921717,1746425442271,-400.0,0.00037808,14]
[359921718,1746425442280,-2000.0,0.00037808,120]
[359921719,1746425442290,-400.7,0.00037808,14]
[359921720,1746425442300,-400.0,0.00037808,14]
[359921721,1746425442309,-439.04,0.00037808,14]
[359921722,1746425442319,-756.14,0.00037808,14]
[359921723,1746425442329,-400.0,0.00037808,14]
[359921724,1746425442340,-1741.6,0.00037808,14]
[359921725,1746425442350,-550.48,0.00037808,14]
[359921726,1746425442359,-1000.0,0.00037808,120]
[359921727,1746425442369,-400.43,0.00037808,2]
[359921728,1746425442379,-400.0,0.00037808,14]
[359921729,1746425442388,-400.0,0.00037808,14]
[359921730,1746425442398,-400.0,0.00037808,14]
[359921731,1746425442408,-400.0,0.00037808,14]
[359921732,1746425442418,-741.79,0.00037808,14]
[359921733,1746425442428,-1053.31,0.00037808,14]
[359921734,1746425442438,-400.0,0.00037808,14]
[359921735,1746425442448,-512.77,0.00037808,14]
[359921736,1746425442458,-1183.98,0.00037808,14]
[359921737,1746425442468,-400.0,0.00037808,14]
[359921738,1746425442478,-400.0,0.00037808,14]
[359921739,1746425442488,-474.27,0.00037808,14]
[359921740,1746425442499,-2628.56161409,0.0003784,2]
[359921741,1746425442508,-7009.61151314,0.0003799,2]
[359921742,1746425442518,-304.54795773,0.00038,120]
[359921743,1746425442528,-3508.0,0.00038,2]
[359921744,1746425442538,-159.55424488,0.00038003,37]
[359921745,1746425442548,-151.0,0.00038059,2]
[359921746,1746425442557,-5670.16435778,0.00038072,3]
[359921747,1746425442568,-400.0,0.00038082,14]
[359921748,1746425442578,-400.0,0.00038082,14]
[359921749,1746425442588,-413.29,0.00038082,14]
[359921750,1746425442598,-400.0,0.00038082,14]
[359921751,1746425442607,-592.7,0.00038082,14]
[359921752,1746425442616,-478.93214594,0.00038082,14]
[359921753,1746425442626,-400.0,0.00038082,14]
[359921754,1746425442636,-400.0,0.00038082,14]
[359921755,1746425442645,-536.32,0.00038082,14]
[359921756,1746425442655,-400.0,0.00038082,14]
[359921757,1746425442665,-500.4,0.00038082,14]
[359921758,1746425442674,-1197.65,0.00038082,14]
[359921759,1746425442683,-400.0,0.00038082,14]
[359921760,1746425442693,-400.0,0.00038082,14]
[359921761,1746425442703,-416.52,0.00038082,14]
[359921762,1746425442712,-400.0,0.00038082,14]
[359921763,1746425442722,-1044.54,0.00038082,14]
[359921764,1746425442732,-400.0,0.00038082,14]
[359921765,1746425442742,-492.38,0.00038082,14]
[359921767,1746425442752,-400.0,0.00038082,14]
[359921769,1746425442763,-151.0,0.00038082,14]
[359921770,1746425442773,-151.0,0.00038082,14]
[359921771,1746425442783,-151.0,0.00038082,14]
[359921772,1746425442792,-400.7,0.00038082,14]
[359921774,1746425442802,-400.0,0.00038082,14]
[359921776,1746425442812,-439.04,0.00038082,14]
[359921777,1746425442822,-756.14,0.00038082,14]
[359921780,1746425442833,-217.77,0.00038082,14]
[359921781,1746425442843,-1741.6,0.00038082,14]
[359921782,1746425442852,-550.48,0.00038082,14]
[359921783,1746425442862,-1000.0,0.00038082,120]
[359921784,1746425442873,-400.43,0.00038082,2]
[359921786,1746425442883,-151.0,0.00038082,14]
[359921787,1746425442893,-400.0,0.00038082,14]
[359921788,1746425442903,-400.0,0.00038082,14]
[359921789,1746425442912,-400.0,0.00038082,14]
[359921790,1746425442922,-400.0,0.00038082,14]
[359921791,1746425442932,-741.79,0.00038082,14]
[359921792,1746425442942,-1053.31,0.00038082,14]
[359921793,1746425442952,-400.0,0.00038082,14]
[359921794,1746425442964,-695.848847,0.00038082,2]
[359921795,1746425442974,-512.77,0.00038082,14]
[359921796,1746425442984,-1183.98,0.00038082,14]
[359921797,1746425442993,-400.0,0.00038082,14]
[359921798,1746425443003,-695.848847,0.00038082,2]
[359921799,1746425443012,-269.62,0.00038082,14]
[359921800,1746425443022,-474.27,0.00038082,14]
[359921801,1746425443031,-2000.0,0.00038082,2]
[359921802,1746425443040,-159.55424488,0.00038245,38]
[359921803,1746425443050,-176.85064414,0.00038284,2]
[359921804,1746425443060,-559.63,0.000383,7]
[359921805,1746425443069,-157.96,0.000383,31]
[359921806,1746425443079,-157.96,0.000383,31]
[359921807,1746425443089,-5590.69135369,0.0003831,3]
[359921808,1746425443099,-11285.93307978,0.0003831,14]
[359921809,1746425443109,-3865.8663419,0.00038356,2]
[359921810,1746425443119,-400.0,0.00038356,14]
[359921811,1746425443128,-400.0,0.00038356,14]
[359921812,1746425443143,-413.29,0.00038356,14]
[359921813,1746425443153,-400.0,0.00038356,14]
[359921814,1746425443162,-592.7,0.00038356,14]
[359921815,1746425443172,-400.0,0.00038356,14]
[359921816,1746425443182,-400.0,0.00038356,14]
[359921817,1746425443192,-400.0,0.00038356,14]
[359921818,1746425443202,-500.4,0.00038356,14]
[359921819,1746425443212,-1197.65,0.00038356,14]
[359921820,1746425443223,-400.0,0.00038356,14]
[359921821,1746425443232,-400.0,0.00038356,14]
[359921822,1746425443242,-416.52,0.00038356,14]
[359921823,1746425443251,-400.0,0.00038356,14]
[359921824,1746425443261,-1044.54,0.00038356,14]
[359921825,1746425443271,-322.17,0.00038356,14]
[359921826,1746425443281,-492.38,0.00038356,14]
[359921827,1746425443291,-400.0,0.00038356,14]
[359921828,1746425443300,-151.0,0.00038356,14]
[359921829,1746425443310,-2000.0,0.00038356,120]
[359921830,1746425443319,-151.0,0.00038356,14]
[359921831,1746425443329,-400.7,0.00038356,14]
[359921832,1746425443338,-400.0,0.00038356,14]
[359921833,1746425443347,-439.04,0.00038356,14]
[359921834,1746425443357,-756.14,0.00038356,14]
[359921835,1746425443366,-1741.6,0.00038356,14]
[359921836,1746425443376,-550.48,0.00038356,14]
[359921837,1746425443386,-1000.0,0.00038356,120]
[359921838,1746425443396,-400.43,0.00038356,2]
[359921839,1746425443405,-400.0,0.00038356,14]
[359921840,1746425443415,-400.0,0.00038356,14]
[359921841,1746425443424,-400.0,0.00038356,14]
[359921842,1746425443434,-400.0,0.00038356,14]
[359921843,1746425443444,-741.79,0.00038356,14]
[359921844,1746425443454,-1053.31,0.00038356,14]
[359921845,1746425443463,-400.0,0.00038356,14]
[359921846,1746425443473,-512.77,0.00038356,14]
[359921847,1746425443482,-1183.98,0.00038356,14]
[359921848,1746425443491,-400.0,0.00038356,14]
[359921849,1746425443501,-474.27,0.00038356,14]
[359921850,1746425443510,-151.0,0.00038356,14]
[359921851,1746425443520,-151.0,0.00038356,14]
[359921852,1746425443529,-151.0,0.00038356,14]
[359921853,1746425443539,-231.312159,0.00038356,14]
[359921854,1746425443549,-202.72810859,0.00038356,5]
[359921855,1746425443558,-472.3481101,0.00038403,4]
[359921856,1746425443567,-159.55424488,0.00038486,38]
[359921857,1746425443577,-213.08463893,0.00038516,2]
[359921858,1746425443586,-5670.16435778,0.0003861,3]
[359921859,1746425443596,-151.0,0.0003862,14]
[359921860,1746425443606,-695.848847,0.0003862,2]
[359921861,1746425443615,-695.848847,0.0003862,2]
[359921862,1746425443625,-400.0,0.0003863,14]
[359921863,1746425443635,-413.29,0.0003863,14]
[359921864,1746425443645,-400.0,0.0003863,14]
[359921865,1746425443654,-592.7,0.0003863,14]
[359921866,1746425443664,-223.0,0.0003863,14]
[359921867,1746425443673,-400.0,0.0003863,14]
[359921868,1746425443683,-400.0,0.0003863,14]
[359921869,1746425443692,-500.4,0.0003863,14]
[359921870,1746425443702,-1197.65,0.0003863,14]
[359921871,1746425443711,-400.0,0.0003863,14]
[359921872,1746425443722,-400.0,0.0003863,14]
[359921873,1746425443731,-416.52,0.0003863,14]
[359921874,1746425443740,-400.0,0.0003863,14]
[359921875,1746425443750,-1044.54,0.0003863,14]
[359921876,1746425443759,-492.38,0.0003863,14]
[359921877,1746425443769,-400.0,0.0003863,14]
[359921878,1746425443779,-400.7,0.0003863,14]
[359921879,1746425443788,-400.0,0.0003863,14]
[359921880,1746425443798,-439.04,0.0003863,14]
[359921881,1746425443808,-756.14,0.0003863,14]
[359921882,1746425443826,-1741.6,0.0003863,14]
[359921883,1746425443836,-550.48,0.0003863,14]
[359921884,1746425443845,-400.43,0.0003863,2]
[359921885,1746425443856,-156.76,0.0003863,14]
[359921886,1746425443865,-400.0,0.0003863,14]
[359921887,1746425443875,-400.0,0.0003863,14]
[359921888,1746425443885,-400.0,0.0003863,14]
[359921889,1746425443895,-741.79,0.0003863,14]
[359921890,1746425443904,-1053.31,0.0003863,14]
[359921891,1746425443914,-400.0,0.0003863,14]
[359921892,1746425443924,-512.77,0.0003863,14]
[359921893,1746425443933,-1183.98,0.0003863,14]
[359921894,1746425443944,-400.0,0.0003863,14]
[359921895,1746425443953,-474.27,0.0003863,14]
[359921896,1746425443963,-159.55424488,0.00038728,39]
[359921897,1746425443973,-500.0,0.0003878,3]
[359921898,1746425443983,-157.96,0.000388,31]
[359921899,1746425443992,-157.96,0.000388,31]
[359921900,1746425444002,-2628.56161409,0.00038865,2]
[359921901,1746425444011,-545.0,0.00038881,2]
[359921902,1746425444020,-707.0,0.00038881,2]
[359921903,1746425444030,-2256.056,0.00038881,2]
[359921904,1746425444039,-489.251,0.00038881,2]
[359921905,1746425444049,-5670.16435778,0.00038894,3]
[359921906,1746425444058,-400.0,0.00038904,14]
[359921907,1746425444067,-413.29,0.00038904,14]
[359921908,1746425444077,-400.0,0.00038904,14]
[359921909,1746425444086,-592.7,0.00038904,14]
[359921910,1746425444095,-400.0,0.00038904,14]
[359921911,1746425444104,-400.0,0.00038904,14]
[359921912,1746425444113,-500.4,0.00038904,14]
[359921913,1746425444123,-1197.65,0.00038904,14]
[359921914,1746425444133,-138.36108514,0.00038904,14]
[359921917,1746425445907,-400.0,0.00035616,14]
[359921918,1746425445916,-93.72030919,0.00038904,14]
[359921919,1746425445928,-167.91860567,0.00038904,14]
[359921920,1746425445939,-416.52,0.00038904,14]
[359921921,1746425445948,-400.0,0.00038904,14]
[359921922,1746425445958,-1044.54,0.00038904,14]
[359921923,1746425445968,-492.38,0.00038904,14]
[359921924,1746425445978,-400.0,0.00038904,14]
[359921926,1746425445988,-151.0,0.00038904,14]
[359921928,1746425445998,-151.0,0.00038904,14]
[359921929,1746425446008,-400.7,0.00038904,14]
[359921930,1746425446018,-400.0,0.00038904,14]
[359921931,1746425446027,-439.04,0.00038904,14]
[359921932,1746425446037,-756.14,0.00038904,14]
[359921934,1746425446047,-1741.6,0.00038904,14]
[359921936,1746425446056,-550.48,0.00038904,14]
[359921938,1746425446066,-400.43,0.00038904,2]
[359921940,1746425446076,-196.65022942,0.00038904,14]
[359921942,1746425446086,-400.0,0.00038904,14]
[359921944,1746425446095,-400.0,0.00038904,14]
[359921946,1746425446104,-741.79,0.00038904,14]
[359921948,1746425446114,-1053.31,0.00038904,14]
[359921950,1746425446125,-400.0,0.00038904,14]
[359921952,1746425446137,-512.77,0.00038904,14]
[359921954,1746425446147,-1183.98,0.00038904,14]
[359921956,1746425446156,-259.85242727,0.00038904,14]
[359921958,1746425446166,-474.27,0.00038904,14]
[359921960,1746425446175,-245.399181,0.00038933,2]
[359921963,1746425446185,-159.55424488,0.00038969,39]
[359921964,1746425446194,-176.85064414,0.00038976,2]
[359921966,1746425446204,-6004.87397131,0.00039,15]
[359921968,1746425446214,-918.66,0.00039,30]
[359921970,1746425446223,-1000.0,0.00039,28]
[359921972,1746425446233,-1000.0,0.00039,28]
[359921974,1746425446242,-1000.0,0.00039,28]
[359921976,1746425446252,-1000.0,0.00039,28]
[359921978,1746425446261,-1000.0,0.00039,28]
[359921980,1746425446270,-1000.0,0.00039,28]
[359921982,1746425446280,-1000.0,0.00039,28]
[359921984,1746425446289,-1000.0,0.00039,28]
[359921986,1746425446298,-1000.0,0.00039,28]
[359921988,1746425446309,-1000.0,0.00039,28]
[359921990,1746425446318,-1000.0,0.00039,28]
[359921992,1746425446327,-1000.0,0.00039,28]
[359921994,1746425446336,-1000.0,0.00039,28]
[359921996,1746425446345,-1000.0,0.00039,28]
[359921998,1746425446355,-1000.0,0.00039,28]
[359922001,1746425446365,-1000.0,0.00039,28]
[359922003,1746425446374,-1000.0,0.00039,28]
[359922005,1746425446384,-1000.0,0.00039,28]
[359922014,1746425446454,-151.0,0.00039,14]
[359922016,1746425446472,-695.848847,0.00039,2]
[359922018,1746425446482,-695.848847,0.00039,2]
[359922020,1746425446491,-5670.16435778,0.00039168,3]
[359922022,1746425446500,-400.0,0.00039178,14]
[359922024,1746425446509,-413.29,0.00039178,14]
[359922026,1746425446519,-351.3,0.00039178,14]
[359922028,1746425446528,-592.7,0.00039178,14]
[359922030,1746425446538,-400.0,0.00039178,14]
[359922032,1746425446547,-400.0,0.00039178,14]
[359922034,1746425446557,-500.4,0.00039178,14]
[359922036,1746425446566,-1197.65,0.00039178,14]
[359922038,1746425446576,-400.0,0.00039178,14]
[359922040,1746425446586,-416.52,0.00039178,14]
[359922042,1746425446595,-400.0,0.00039178,14]
[359922044,1746425446604,-1044.54,0.00039178,14]
[359922046,1746425446614,-492.38,0.00039178,14]
[359922048,1746425446624,-400.0,0.00039178,14]
[359922050,1746425446634,-400.7,0.00039178,14]
[359922052,1746425446643,-400.0,0.00039178,14]
[359922054,1746425446652,-439.04,0.00039178,14]
[359922056,1746425446661,-756.14,0.00039178,14]
[359922058,1746425446671,-1741.6,0.00039178,14]
[359922060,1746425446680,-550.48,0.00039178,14]
[359922062,1746425446689,-400.43,0.00039178,2]
[359922064,1746425446700,-400.0,0.00039178,14]
[359922066,1746425446709,-400.0,0.00039178,14]
[359922068,1746425446720,-741.79,0.00039178,14]
[359922070,1746425446729,-1053.31,0.00039178,14]
[359922072,1746425446739,-400.0,0.00039178,14]
[359922074,1746425446749,-512.77,0.00039178,14]
[359922076,1746425446758,-1183.98,0.00039178,14]
[359922078,1746425446768,-474.27,0.00039178,14]
[359922080,1746425446778,-2500.0,0.00039178,2]
[359922082,1746425446787,-157.16335624,0.000392,30]
[359922083,1746425446797,-151.0,0.000392,14]
[359922084,1746425446807,-159.55424488,0.0003921,40]
[359922085,1746425446816,-157.96,0.000393,31]
[359922086,1746425446826,-157.96,0.000393,31]
[359922087,1746425446835,-159.55424488,0.00039452,40]
[359922088,1746425446844,-400.0,0.00039452,14]
[359922089,1746425446854,-413.29,0.00039452,14]
[359922090,1746425446863,-592.7,0.00039452,14]
[359922091,1746425446873,-400.0,0.00039452,14]
[359922092,1746425446883,-400.0,0.00039452,14]
[359922093,1746425446893,-500.4,0.00039452,14]
[359922094,1746425446902,-1197.65,0.00039452,14]
[359922095,1746425446912,-400.0,0.00039452,14]
[359922096,1746425446922,-416.52,0.00039452,14]
[359922097,1746425446932,-400.0,0.00039452,14]